[Event "MČR v rapid šachu družstev 2019"]
[Site "Teplice, Czech Republic"]
[Date "2019.09.15"]
[Round "2.8"]
[White "Nedoma, Marek"]
[Black "Kuba, Jindrich"]
[Result "0-1"]
[TimeControl "15 min. + 5s"]
[WhiteElo "2022"]
[BlackElo "2229"]

1. d4 {[%clk 00:15:07]} {[%emt 00:00:03]} Nf6 {[%clk 00:15:09]} {[%emt
00:00:01]} 2. Nf3 {[%clk 00:15:10]} {[%emt 00:00:02]} e6 {[%clk 00:15:13]}
{[%emt 00:00:01]} 3. Bf4 {[%clk 00:15:12]} {[%emt 00:00:03]} b6 {[%clk
00:15:16]} {[%emt 00:00:02]} 4. e3 {[%clk 00:15:07]} {[%emt 00:00:10]} Bb7
{[%clk 00:15:20]} {[%emt 00:00:02]} 5. h3 {[%clk 00:14:54]} {[%emt 00:00:18]}
Be7 {[%clk 00:15:23]} {[%emt 00:00:01]} 6. Bd3 {[%clk 00:14:55]} {[%emt
00:00:04]} O-O {[%clk 00:15:24]} {[%emt 00:00:04]} 7. Qe2 {[%clk 00:14:27]}
{[%emt 00:00:33]} d5 {[%clk 00:15:24]} {[%emt 00:00:05]} 8. Nbd2 {[%clk
00:13:55]} {[%emt 00:00:37]} c5 {[%clk 00:15:21]} {[%emt 00:00:09]} 9. c3
{[%clk 00:13:55]} {[%emt 00:00:05]} Nc6 {[%clk 00:15:15]} {[%emt 00:00:11]} 10.
O-O {[%clk 00:13:51]} {[%emt 00:00:09]} Re8 {[%clk 00:15:12]} {[%emt 00:00:08]}
11. Ne5 {[%clk 00:12:36]} {[%emt 00:01:19]} Nxe5 {[%clk 00:15:01]} {[%emt
00:00:15]} 12. dxe5 {[%clk 00:12:12]} {[%emt 00:00:29]} Nd7 {[%clk 00:15:05]}
{[%emt 00:00:01]} 13. e4 {[%clk 00:11:04]} {[%emt 00:01:13]} Nf8 {[%clk
00:14:44]} {[%emt 00:00:27]} 14. Bb5 {[%clk 00:10:43]} {[%emt 00:00:26]} Nd7
{[%clk 00:14:21]} {[%emt 00:00:27]} 15. Rfd1 {[%clk 00:10:22]} {[%emt
00:00:26]} a6 {[%clk 00:14:20]} {[%emt 00:00:06]} 16. Bd3 {[%clk 00:09:33]}
{[%emt 00:00:54]} Qc8 {[%clk 00:13:25]} {[%emt 00:01:00]} 17. exd5 {[%clk
00:08:56]} {[%emt 00:00:43]} exd5 {[%clk 00:13:26]} {[%emt 00:00:05]} 18. Qg4
{[%clk 00:07:54]} {[%emt 00:01:06]} Nf8 {[%clk 00:13:18]} {[%emt 00:00:13]} 19.
Bf5 {[%clk 00:07:48]} {[%emt 00:00:11]} Ne6 {[%clk 00:12:54]} {[%emt 00:00:30]}
20. Nf3 {[%clk 00:06:44]} {[%emt 00:01:08]} Qc6 {[%clk 00:12:21]} {[%emt
00:00:39]} 21. Bxe6 {[%clk 00:04:59]} {[%emt 00:01:50]} Qxe6 {[%clk 00:12:12]}
{[%emt 00:00:13]} 22. Qxe6 {[%clk 00:04:38]} {[%emt 00:00:26]} fxe6 {[%clk
00:12:16]} {[%emt 00:00:02]} 23. Bg5 {[%clk 00:04:38]} {[%emt 00:00:05]} Bf8
{[%clk 00:12:09]} {[%emt 00:00:12]} 24. Rd3 {[%clk 00:04:02]} {[%emt 00:00:39]}
h6 {[%clk 00:12:12]} {[%emt 00:00:04]} 25. Bh4 {[%clk 00:04:00]} {[%emt
00:00:07]} g5 {[%clk 00:11:48]} {[%emt 00:00:29]} 26. Bg3 {[%clk 00:04:04]}
{[%emt 00:00:01]} Be7 {[%clk 00:11:51]} {[%emt 00:00:02]} 27. Nh2 {[%clk
00:04:01]} {[%emt 00:00:07]} Kh7 {[%clk 00:11:51]} {[%emt 00:00:05]} 28. f4
{[%clk 00:03:49]} {[%emt 00:00:18]} Rf8 {[%clk 00:11:49]} {[%emt 00:00:07]} 29.
Rf1 {[%clk 00:03:38]} {[%emt 00:00:15]} a5 {[%clk 00:11:41]} {[%emt 00:00:14]}
30. fxg5 {[%clk 00:02:43]} {[%emt 00:01:00]} Rxf1+ {[%clk 00:11:36]} {[%emt
00:00:10]} 31. Nxf1 {[%clk 00:02:47]} {[%emt 00:00:01]} Bxg5 {[%clk 00:11:31]}
{[%emt 00:00:10]} 32. Rf3 {[%clk 00:02:46]} {[%emt 00:00:05]} Kg7 {[%clk
00:11:34]} {[%emt 00:00:03]} 33. Be1 {[%clk 00:02:34]} {[%emt 00:00:17]} d4
{[%clk 00:11:02]} {[%emt 00:00:38]} 34. Rg3 {[%clk 00:02:25]} {[%emt 00:00:14]}
Kh7 {[%clk 00:10:57]} {[%emt 00:00:10]} 35. cxd4 {[%clk 00:02:27]} {[%emt
00:00:04]} cxd4 {[%clk 00:10:59]} {[%emt 00:00:03]} 36. Bd2 {[%clk 00:02:18]}
{[%emt 00:00:14]} Be7 {[%clk 00:10:41]} {[%emt 00:00:22]} 37. Rg4 {[%clk
00:01:53]} {[%emt 00:00:29]} Rd8 {[%clk 00:10:09]} {[%emt 00:00:37]} 38. Rf4
{[%clk 00:01:42]} {[%emt 00:00:17]} Rf8 {[%clk 00:10:05]} {[%emt 00:00:08]} 39.
Rxf8 {[%clk 00:01:40]} {[%emt 00:00:08]} Bxf8 {[%clk 00:10:09]} 40. Kf2 {[%clk
00:01:37]} {[%emt 00:00:09]} Be7 {[%clk 00:08:32]} {[%emt 00:01:42]} 41. g3
{[%clk 00:01:39]} {[%emt 00:00:03]} Bc5 {[%clk 00:08:23]} {[%emt 00:00:14]} 42.
a3 {[%clk 00:01:42]} {[%emt 00:00:03]} a4 {[%clk 00:08:14]} {[%emt 00:00:14]}
43. h4 {[%clk 00:01:33]} {[%emt 00:00:14]} h5 {[%clk 00:07:36]} {[%emt
00:00:43]} 44. Bg5 {[%clk 00:00:52]} {[%emt 00:00:46]} Kg6 {[%clk 00:07:32]}
{[%emt 00:00:09]} 45. Nd2 {[%clk 00:00:38]} {[%emt 00:00:18]} Bd5 {[%clk
00:07:25]} {[%emt 00:00:12]} 46. Nf1 {[%clk 00:00:17]} {[%emt 00:00:26]} Kf5
{[%clk 00:07:05]} {[%emt 00:00:26]} 47. Bf4 {[%clk 00:00:15]} {[%emt 00:00:07]}
Bf8 {[%clk 00:06:26]} {[%emt 00:00:43]} 48. Nd2 {[%clk 00:00:12]} {[%emt
00:00:07]} Bg7 {[%clk 00:06:17]} {[%emt 00:00:14]} 49. Nb1 {[%clk 00:00:13]}
{[%emt 00:00:04]} Bxe5 {[%clk 00:06:12]} {[%emt 00:00:11]} 50. Bxe5 {[%clk
00:00:17]} {[%emt 00:00:01]} Kxe5 {[%clk 00:06:16]} {[%emt 00:00:01]} 51. Nd2
{[%clk 00:00:21]} {[%emt 00:00:01]} Kf5 {[%clk 00:06:15]} {[%emt 00:00:04]} 52.
Ke2 {[%clk 00:00:15]} {[%emt 00:00:10]} e5 {[%clk 00:05:49]} {[%emt 00:00:33]}
53. Kf2 {[%clk 00:00:07]} {[%emt 00:00:13]} b5 {[%clk 00:05:52]} {[%emt
00:00:02]} 54. Nf1 {[%clk 00:00:09]} {[%emt 00:00:03]} e4 {[%clk 00:05:51]}
{[%emt 00:00:06]} 55. Nh2 {[%clk 00:00:07]} {[%emt 00:00:07]} e3+ {[%clk
00:05:08]} {[%emt 00:00:47]} 56. Ke2 {[%clk 00:00:11]} {[%emt 00:00:02]} Be4
{[%clk 00:04:31]} {[%emt 00:00:42]} 57. Kd1 {[%clk 00:00:08]} {[%emt 00:00:07]}
d3 {[%clk 00:04:23]} {[%emt 00:00:15]} 58. Ke1 {[%clk 00:00:06]} {[%emt
00:00:06]} Bg2 {[%clk 00:04:24]} {[%emt 00:00:04]} 59. Kd1 {[%clk 00:00:07]}
{[%emt 00:00:05]} Ke4 {[%clk 00:03:58]} {[%emt 00:00:30]} 60. Ke1 {[%clk
00:00:07]} {[%emt 00:00:05]} Bh3 {[%clk 00:03:27]} {[%emt 00:00:36]} 61. Kd1
{[%clk 00:00:07]} {[%emt 00:00:04]} Be6 {[%clk 00:03:08]} {[%emt 00:00:23]} 62.
Ke1 {[%clk 00:00:07]} {[%emt 00:00:07]} d2+ {[%clk 00:03:11]} {[%emt 00:00:02]}
63. Ke2 {[%clk 00:00:09]} {[%emt 00:00:03]} Bc4+ {[%clk 00:03:15]} 64. Kd1
{[%clk 00:00:11]} {[%emt 00:00:03]} Bb3+ {[%emt 00:00:07]} 0-1

[Event "MČR v rapid šachu družstev 2019"]
[Site "Teplice, Czech Republic"]
[Date "2019.09.15"]
[Round "2.9"]
[White "Slampa, Jan"]
[Black "Vykouk, Jan"]
[Result "0-1"]
[TimeControl "15 min. + 5s"]
[WhiteElo "2166"]
[BlackElo "2428"]

1. d4 {[%clk 00:15:07]} {[%emt 00:00:01]} Nf6 {[%clk 00:15:08]} {[%emt
00:00:02]} 2. c4 {[%clk 00:15:10]} {[%emt 00:00:02]} e6 {[%clk 00:15:11]}
{[%emt 00:00:03]} 3. Nc3 {[%clk 00:15:10]} {[%emt 00:00:04]} Bb4 {[%clk
00:15:14]} {[%emt 00:00:03]} 4. Qc2 {[%clk 00:15:13]} {[%emt 00:00:02]} O-O
{[%clk 00:15:15]} {[%emt 00:00:04]} 5. a3 {[%clk 00:15:17]} {[%emt 00:00:02]}
Bxc3+ {[%clk 00:15:18]} {[%emt 00:00:02]} 6. Qxc3 {[%clk 00:15:20]} {[%emt
00:00:01]} b6 {[%clk 00:15:21]} {[%emt 00:00:02]} 7. Bg5 {[%clk 00:14:52]}
{[%emt 00:00:32]} h6 {[%clk 00:15:24]} {[%emt 00:00:03]} 8. Bh4 {[%clk
00:14:53]} {[%emt 00:00:04]} Bb7 {[%clk 00:15:26]} {[%emt 00:00:03]} 9. e3
{[%clk 00:14:48]} {[%emt 00:00:09]} d5 {[%clk 00:15:28]} {[%emt 00:00:04]} 10.
cxd5 {[%clk 00:14:26]} {[%emt 00:00:27]} exd5 {[%clk 00:14:31]} {[%emt
00:01:03]} 11. Nf3 {[%clk 00:13:56]} {[%emt 00:00:34]} Nbd7 {[%clk 00:14:24]}
{[%emt 00:00:12]} 12. Be2 {[%clk 00:12:36]} {[%emt 00:01:25]} c5 {[%clk
00:14:17]} {[%emt 00:00:12]} 13. dxc5 {[%clk 00:12:16]} {[%emt 00:00:26]} bxc5
{[%clk 00:14:20]} {[%emt 00:00:03]} 14. O-O {[%clk 00:12:10]} {[%emt 00:00:10]}
Qb6 {[%clk 00:14:23]} {[%emt 00:00:03]} 15. b4 {[%clk 00:11:06]} {[%emt
00:01:09]} Ne4 {[%clk 00:14:16]} {[%emt 00:00:11]} 16. Qb2 {[%clk 00:10:59]}
{[%emt 00:00:12]} a5 {[%clk 00:13:54]} {[%emt 00:00:27]} 17. Rab1 {[%clk
00:10:40]} {[%emt 00:00:25]} axb4 {[%clk 00:13:54]} {[%emt 00:00:06]} 18. axb4
{[%clk 00:10:43]} {[%emt 00:00:01]} c4 {[%clk 00:13:47]} {[%emt 00:00:12]} 19.
Nd4 {[%clk 00:10:24]} {[%emt 00:00:24]} c3 {[%clk 00:13:44]} {[%emt 00:00:09]}
20. Qc2 {[%clk 00:10:10]} {[%emt 00:00:18]} Nd2 {[%clk 00:13:36]} {[%emt
00:00:13]} 21. Qxc3 {[%clk 00:09:58]} {[%emt 00:00:16]} Nxb1 {[%clk 00:13:38]}
{[%emt 00:00:03]} 22. Rxb1 {[%clk 00:09:55]} {[%emt 00:00:08]} Rfc8 {[%clk
00:13:17]} {[%emt 00:00:27]} 23. Qb2 {[%clk 00:09:55]} {[%emt 00:00:05]} Qg6
{[%clk 00:12:54]} {[%emt 00:00:27]} 24. b5 {[%clk 00:07:39]} {[%emt 00:02:21]}
Nc5 {[%clk 00:12:45]} {[%emt 00:00:14]} 25. Bf3 {[%clk 00:06:37]} {[%emt
00:01:06]} Na4 {[%clk 00:11:01]} {[%emt 00:01:50]} 26. Qb3 {[%clk 00:05:31]}
{[%emt 00:01:11]} Rc3 {[%clk 00:10:55]} {[%emt 00:00:12]} 27. Qb4 {[%clk
00:05:13]} {[%emt 00:00:23]} Rc4 {[%clk 00:10:45]} {[%emt 00:00:15]} 28. Qb3
{[%clk 00:05:11]} {[%emt 00:00:06]} Nc5 {[%clk 00:10:18]} {[%emt 00:00:32]} 29.
Qd1 {[%clk 00:05:01]} {[%emt 00:00:14]} Rca4 {[%clk 00:09:07]} {[%emt
00:01:17]} 30. h3 {[%clk 00:04:24]} {[%emt 00:00:42]} Qxb1 {[%clk 00:08:24]}
{[%emt 00:00:48]} 31. Qxb1 {[%clk 00:04:28]} Ra1 {[%clk 00:08:28]} {[%emt
00:00:01]} 32. Qxa1 {[%clk 00:04:30]} {[%emt 00:00:03]} Rxa1+ {[%clk 00:08:32]}
{[%emt 00:00:01]} 33. Kh2 {[%clk 00:04:33]} {[%emt 00:00:01]} Rb1 {[%clk
00:08:30]} {[%emt 00:00:07]} 34. Nf5 {[%clk 00:03:24]} {[%emt 00:01:14]} Rxb5
{[%clk 00:07:00]} {[%emt 00:01:36]} 35. Ne7+ {[%clk 00:03:03]} {[%emt
00:00:25]} Kh8 {[%clk 00:05:40]} {[%emt 00:01:24]} 36. Nxd5 {[%clk 00:03:06]}
{[%emt 00:00:02]} Nd3 {[%clk 00:05:25]} {[%emt 00:00:20]} 37. Nc3 {[%clk
00:02:17]} {[%emt 00:00:55]} Rb3 {[%clk 00:05:25]} {[%emt 00:00:05]} 38. Bxb7
{[%clk 00:02:12]} {[%emt 00:00:10]} Rxb7 {[%clk 00:05:29]} {[%emt 00:00:02]} 39.
g4 {[%clk 00:02:05]} {[%emt 00:00:11]} Rb2 {[%clk 00:04:58]} {[%emt 00:00:35]}
40. Kg2 {[%clk 00:01:58]} {[%emt 00:00:12]} Ne1+ {[%clk 00:04:50]} {[%emt
00:00:13]} 41. Kf1 {[%clk 00:02:01]} {[%emt 00:00:02]} Nf3 {[%clk 00:04:50]}
{[%emt 00:00:05]} 42. Bg3 {[%clk 00:02:01]} {[%emt 00:00:04]} f6 {[%clk
00:04:03]} {[%emt 00:00:53]} 43. Kg2 {[%clk 00:02:00]} {[%emt 00:00:06]} Ne1+
{[%clk 00:04:01]} {[%emt 00:00:07]} 44. Kf1 {[%clk 00:02:03]} {[%emt 00:00:01]}
Nd3 {[%clk 00:04:05]} {[%emt 00:00:01]} 45. Ne4 {[%clk 00:01:29]} {[%emt
00:00:38]} Kg8 {[%clk 00:04:08]} {[%emt 00:00:02]} 46. Kg2 {[%clk 00:01:30]}
{[%emt 00:00:04]} Kf7 {[%clk 00:04:03]} {[%emt 00:00:10]} 47. Nd6+ {[%clk
00:01:31]} {[%emt 00:00:04]} Kg6 {[%clk 00:03:33]} {[%emt 00:00:35]} 48. Nf5
{[%clk 00:01:24]} {[%emt 00:00:12]} Rb1 {[%clk 00:03:25]} {[%emt 00:00:13]} 49.
Nd4 {[%clk 00:01:17]} {[%emt 00:00:12]} Kf7 {[%clk 00:03:18]} {[%emt 00:00:12]}
50. Bc7 {[%clk 00:00:53]} {[%emt 00:00:29]} Ne1+ {[%clk 00:03:11]} {[%emt
00:00:12]} 51. Kh2 {[%clk 00:00:44]} {[%emt 00:00:13]} Rb2 {[%clk 00:03:03]}
{[%emt 00:00:13]} 52. Bg3 {[%clk 00:00:44]} {[%emt 00:00:06]} Nc2 {[%clk
00:03:00]} {[%emt 00:00:08]} 53. Nf5 {[%clk 00:00:38]} {[%emt 00:00:11]} g6
{[%clk 00:02:40]} {[%emt 00:00:26]} 54. Nd6+ {[%clk 00:00:36]} {[%emt
00:00:06]} Ke6 {[%clk 00:02:39]} {[%emt 00:00:06]} 55. Nc4 {[%clk 00:00:25]}
{[%emt 00:00:17]} Ra2 {[%clk 00:02:37]} {[%emt 00:00:07]} 56. Kg1 {[%clk
00:00:25]} {[%emt 00:00:05]} Kd5 {[%clk 00:02:25]} {[%emt 00:00:18]} 57. Nd6
{[%clk 00:00:22]} {[%emt 00:00:08]} Ne1 {[%clk 00:01:56]} {[%emt 00:00:34]} 58.
Kh2 {[%clk 00:00:15]} {[%emt 00:00:13]} Nf3+ {[%clk 00:01:30]} {[%emt
00:00:32]} 59. Kg2 {[%clk 00:00:18]} {[%emt 00:00:01]} Ng5 {[%clk 00:01:20]}
{[%emt 00:00:15]} 60. Nb5 {[%clk 00:00:17]} {[%emt 00:00:07]} Kc4 {[%clk
00:01:13]} {[%emt 00:00:12]} 61. Nd6+ {[%clk 00:00:16]} {[%emt 00:00:06]} Kd5
{[%clk 00:01:14]} {[%emt 00:00:03]} 62. Nb5 {[%clk 00:00:20]} {[%emt 00:00:01]}
Rb2 {[%clk 00:01:09]} {[%emt 00:00:10]} 63. Nd6 {[%clk 00:00:22]} {[%emt
00:00:03]} Rb6 {[%clk 00:00:39]} {[%emt 00:00:35]} 64. Nc8 {[%clk 00:00:22]}
{[%emt 00:00:05]} Rb7 {[%clk 00:00:38]} {[%emt 00:00:05]} 65. Nd6 {[%clk
00:00:20]} {[%emt 00:00:07]} Rb6 {[%clk 00:00:28]} {[%emt 00:00:16]} 66. Nc8
{[%clk 00:00:24]} Re6 {[%clk 00:00:30]} {[%emt 00:00:03]} 67. Na7 {[%clk
00:00:19]} {[%emt 00:00:11]} Kc4 {[%clk 00:00:25]} {[%emt 00:00:10]} 68. Nc8
{[%clk 00:00:18]} {[%emt 00:00:05]} Kc5 {[%clk 00:00:26]} {[%emt 00:00:04]} 69.
Bf4 {[%clk 00:00:12]} {[%emt 00:00:11]} Nf7 {[%clk 00:00:22]} {[%emt 00:00:09]}
70. Kf3 {[%clk 00:00:10]} {[%emt 00:00:07]} g5 {[%clk 00:00:22]} {[%emt
00:00:04]} 71. Bh2 {[%clk 00:00:13]} {[%emt 00:00:02]} Ne5+ {[%clk 00:00:26]}
72. Ke2 {[%clk 00:00:15]} {[%emt 00:00:03]} Kc6 {[%clk 00:00:24]} {[%emt
00:00:07]} 73. Na7+ {[%clk 00:00:12]} {[%emt 00:00:08]} Kb6 {[%clk 00:00:25]}
{[%emt 00:00:04]} 74. Nc8+ {[%clk 00:00:15]} {[%emt 00:00:02]} Kb7 {[%clk
00:00:28]} {[%emt 00:00:02]} 75. f4 {[%clk 00:00:15]} {[%emt 00:00:05]} gxf4
{[%clk 00:00:29]} {[%emt 00:00:04]} 76. exf4 {[%clk 00:00:07]} {[%emt
00:00:12]} Nxg4+ {[%clk 00:00:30]} {[%emt 00:00:03]} 0-1

[Event "MČR v rapid šachu družstev 2019"]
[Site "Teplice, Czech Republic"]
[Date "2019.09.15"]
[Round "2.10"]
[White "Studnicka, Tomas"]
[Black "Horak, Jiri"]
[Result "1-0"]
[TimeControl "15 min. + 5s"]
[WhiteElo "2379"]
[BlackElo "2151"]

1. d4 {[%clk 00:15:05]} {[%emt 00:14:15]} d5 {[%clk 00:15:07]} {[%emt
00:00:05]} 2. Bf4 {[%clk 00:15:08]} {[%emt 00:00:02]} Nf6 {[%clk 00:15:05]}
{[%emt 00:00:06]} 3. e3 {[%clk 00:15:13]} e6 {[%clk 00:15:04]} {[%emt
00:00:07]} 4. Nd2 {[%clk 00:15:12]} {[%emt 00:00:06]} Bd6 {[%clk 00:14:58]}
{[%emt 00:00:11]} 5. Bg3 {[%clk 00:15:16]} O-O {[%clk 00:14:48]} {[%emt
00:00:16]} 6. Bd3 {[%clk 00:15:20]} {[%emt 00:00:02]} b6 {[%clk 00:14:33]}
{[%emt 00:00:19]} 7. Qe2 {[%clk 00:15:24]} {[%emt 00:00:02]} Bb7 {[%clk
00:14:32]} {[%emt 00:00:06]} 8. Ngf3 {[%clk 00:15:28]} {[%emt 00:00:02]} c5
{[%clk 00:14:13]} {[%emt 00:00:23]} 9. c3 {[%clk 00:15:32]} a5 {[%clk
00:13:58]} {[%emt 00:00:20]} 10. Ne5 {[%clk 00:15:35]} {[%emt 00:00:03]} Ba6
{[%clk 00:13:27]} {[%emt 00:00:35]} 11. Bxa6 {[%clk 00:15:38]} {[%emt
00:00:03]} Nxa6 {[%clk 00:13:31]} {[%emt 00:00:01]} 12. f4 {[%clk 00:15:27]}
{[%emt 00:00:12]} c4 {[%clk 00:12:58]} {[%emt 00:00:37]} 13. Bh4 {[%clk
00:14:39]} {[%emt 00:00:58]} b5 {[%clk 00:12:22]} {[%emt 00:00:40]} 14. a3
{[%clk 00:13:33]} {[%emt 00:01:11]} b4 {[%clk 00:12:08]} {[%emt 00:00:19]} 15.
axb4 {[%clk 00:13:37]} {[%emt 00:00:02]} axb4 {[%clk 00:12:10]} {[%emt
00:00:02]} 16. O-O {[%clk 00:13:41]} {[%emt 00:00:02]} b3 {[%clk 00:10:57]}
{[%emt 00:01:18]} 17. e4 {[%clk 00:13:39]} {[%emt 00:00:07]} Nc7 {[%clk
00:09:43]} {[%emt 00:01:19]} 18. Rxa8 {[%clk 00:13:33]} {[%emt 00:00:12]} Qxa8
{[%clk 00:09:14]} {[%emt 00:00:34]} 19. Bxf6 {[%clk 00:13:36]} {[%emt
00:00:03]} gxf6 {[%clk 00:09:16]} {[%emt 00:00:02]} 20. Nd7 {[%clk 00:13:39]}
{[%emt 00:00:01]} Be7 {[%clk 00:07:39]} {[%emt 00:01:42]} 21. Nxf8 {[%clk
00:13:37]} {[%emt 00:00:08]} Bxf8 {[%clk 00:07:38]} {[%emt 00:00:06]} 22. f5
{[%clk 00:13:40]} {[%emt 00:00:03]} Bg7 {[%clk 00:06:42]} {[%emt 00:01:01]} 23.
fxe6 {[%clk 00:13:34]} {[%emt 00:00:11]} fxe6 {[%clk 00:06:32]} {[%emt
00:00:15]} 24. exd5 {[%clk 00:13:25]} {[%emt 00:00:15]} exd5 {[%clk 00:06:35]}
{[%emt 00:00:01]} 25. Qe7 {[%clk 00:13:19]} {[%emt 00:00:10]} Qc6 {[%clk
00:05:34]} {[%emt 00:01:07]} 26. Rf3 {[%clk 00:12:49]} {[%emt 00:00:35]} h6
{[%clk 00:03:11]} {[%emt 00:02:29]} 27. Rg3 {[%clk 00:12:39]} {[%emt 00:00:15]}
Ne8 {[%clk 00:03:13]} {[%emt 00:00:02]} 28. Nf1 {[%clk 00:12:05]} {[%emt
00:00:38]} f5 {[%clk 00:02:34]} {[%emt 00:00:45]} 29. h4 {[%clk 00:11:10]}
{[%emt 00:01:00]} Kh7 {[%clk 00:00:25]} {[%emt 00:02:14]} 30. h5 {[%clk
00:11:03]} {[%emt 00:00:11]} Qa4 {[%clk 00:00:14]} {[%emt 00:00:16]} 31. Kh2
{[%clk 00:10:39]} {[%emt 00:00:29]} Qb5 {[%clk 00:00:00]} {[%emt 00:00:20]} 32.
Rg6 {[%clk 00:10:39]} {[%emt 00:00:11]} Qb8+ {[%clk 00:00:00]} {[%emt
00:00:10]} 1-0

[Event "MČR v rapid šachu družstev 2019"]
[Site "Teplice, Czech Republic"]
[Date "2019.09.15"]
[Round "2.11"]
[White "Nudcenko, Karel"]
[Black "Sodoma, Jan"]
[Result "1-0"]
[TimeControl "15 min. + 5s"]
[WhiteElo "2110"]
[BlackElo "2358"]

1. e4 {[%clk 00:15:07]} {[%emt 00:00:02]} e5 {[%clk 00:15:08]} {[%emt
00:00:02]} 2. Nf3 {[%clk 00:15:10]} {[%emt 00:00:02]} Nc6 {[%clk 00:15:12]}
{[%emt 00:00:01]} 3. Bb5 {[%clk 00:15:14]} {[%emt 00:00:02]} a6 {[%clk
00:15:15]} {[%emt 00:00:01]} 4. Bxc6 {[%clk 00:15:17]} {[%emt 00:00:02]} dxc6
{[%clk 00:15:19]} {[%emt 00:00:02]} 5. O-O {[%clk 00:15:18]} {[%emt 00:00:04]}
Qf6 {[%clk 00:15:22]} {[%emt 00:00:01]} 6. d4 {[%clk 00:15:08]} {[%emt
00:00:16]} exd4 {[%clk 00:15:24]} {[%emt 00:00:02]} 7. Qxd4 {[%clk 00:15:08]}
{[%emt 00:00:06]} Bg4 {[%clk 00:15:27]} {[%emt 00:00:02]} 8. Qxf6 {[%clk
00:14:48]} {[%emt 00:00:24]} Nxf6 {[%clk 00:15:29]} {[%emt 00:00:03]} 9. Ne5
{[%clk 00:14:38]} {[%emt 00:00:15]} Be6 {[%clk 00:15:27]} {[%emt 00:00:08]} 10.
f3 {[%clk 00:14:29]} {[%emt 00:00:14]} Bc5+ {[%clk 00:15:10]} {[%emt 00:00:21]}
11. Kh1 {[%clk 00:14:32]} {[%emt 00:00:02]} Bd4 {[%clk 00:14:50]} {[%emt
00:00:25]} 12. Nd3 {[%clk 00:14:35]} {[%emt 00:00:03]} O-O-O {[%clk 00:14:52]}
{[%emt 00:00:03]} 13. Nd2 {[%clk 00:14:18]} {[%emt 00:00:22]} b6 {[%clk
00:11:54]} {[%emt 00:03:04]} 14. Nb3 {[%clk 00:14:05]} {[%emt 00:00:18]} Bxb3
{[%clk 00:11:57]} {[%emt 00:00:02]} 15. axb3 {[%clk 00:14:08]} {[%emt
00:00:01]} a5 {[%clk 00:12:01]} {[%emt 00:00:02]} 16. Rd1 {[%clk 00:13:35]}
{[%emt 00:00:38]} Nd7 {[%clk 00:11:15]} {[%emt 00:00:50]} 17. c3 {[%clk
00:12:24]} {[%emt 00:01:17]} Bf6 {[%clk 00:11:18]} {[%emt 00:00:02]} 18. Bf4
{[%clk 00:12:02]} {[%emt 00:00:27]} Kb7 {[%clk 00:10:27]} {[%emt 00:00:56]} 19.
b4 {[%clk 00:11:50]} {[%emt 00:00:17]} axb4 {[%clk 00:10:24]} {[%emt 00:00:08]}
20. Nxb4 {[%clk 00:11:40]} {[%emt 00:00:14]} Nc5 {[%clk 00:09:18]} {[%emt
00:01:10]} 21. Kg1 {[%clk 00:10:53]} {[%emt 00:00:53]} Be7 {[%clk 00:08:37]}
{[%emt 00:00:45]} 22. Kf1 {[%clk 00:09:45]} {[%emt 00:01:13]} Nb3 {[%clk
00:08:38]} {[%emt 00:00:04]} 23. Rab1 {[%clk 00:09:45]} {[%emt 00:00:06]} Bxb4
{[%clk 00:06:32]} {[%emt 00:02:11]} 24. cxb4 {[%clk 00:09:48]} {[%emt
00:00:02]} Rhe8 {[%clk 00:06:15]} {[%emt 00:00:21]} 25. Ke1 {[%clk 00:08:44]}
{[%emt 00:01:09]} Nd4 {[%clk 00:05:43]} {[%emt 00:00:37]} 26. Rd2 {[%clk
00:07:54]} {[%emt 00:00:55]} Ne6 {[%clk 00:04:03]} {[%emt 00:01:45]} 27. Rxd8
{[%clk 00:07:12]} {[%emt 00:00:47]} Rxd8 {[%clk 00:04:02]} {[%emt 00:00:06]} 28.
Be5 {[%clk 00:06:43]} {[%emt 00:00:34]} f6 {[%clk 00:03:20]} {[%emt 00:00:47]}
29. Bc3 {[%clk 00:06:45]} {[%emt 00:00:04]} Ka6 {[%clk 00:03:16]} {[%emt
00:00:09]} 30. Rd1 {[%clk 00:06:31]} {[%emt 00:00:18]} Rxd1+ {[%clk 00:02:59]}
{[%emt 00:00:22]} 31. Kxd1 {[%clk 00:06:35]} Kb5 {[%clk 00:02:55]} {[%emt
00:00:09]} 32. Kd2 {[%clk 00:06:30]} {[%emt 00:00:10]} Ka4 {[%clk 00:02:26]}
{[%emt 00:00:33]} 33. Ke3 {[%clk 00:06:29]} {[%emt 00:00:07]} Kb3 {[%clk
00:02:08]} {[%emt 00:00:23]} 34. f4 {[%clk 00:06:20]} {[%emt 00:00:14]} b5
{[%clk 00:01:11]} {[%emt 00:01:03]} 35. f5 {[%clk 00:06:10]} {[%emt 00:00:15]}
Ng5 {[%clk 00:00:26]} {[%emt 00:00:50]} 36. e5 {[%clk 00:06:07]} {[%emt
00:00:08]} fxe5 {[%clk 00:00:22]} {[%emt 00:00:09]} 37. Bxe5 {[%clk 00:06:09]}
{[%emt 00:00:03]} Kxb4 {[%clk 00:00:25]} {[%emt 00:00:02]} 38. Bxg7 {[%clk
00:05:56]} {[%emt 00:00:17]} Nf7 {[%clk 00:00:20]} {[%emt 00:00:09]} 39. g4
{[%clk 00:05:47]} {[%emt 00:00:14]} Kc4 {[%clk 00:00:23]} {[%emt 00:00:02]} 40.
Ke4 {[%clk 00:05:41]} {[%emt 00:00:11]} b4 {[%clk 00:00:19]} {[%emt 00:00:09]}
41. h4 {[%clk 00:05:42]} {[%emt 00:00:03]} Kc5 {[%clk 00:00:19]} {[%emt
00:00:05]} 42. Bf8+ {[%clk 00:05:38]} {[%emt 00:00:10]} Kc4 {[%clk 00:00:14]}
{[%emt 00:00:10]} 43. g5 {[%clk 00:05:35]} {[%emt 00:00:07]} Kb3 {[%clk
00:00:18]} {[%emt 00:00:02]} 44. g6 {[%clk 00:05:32]} {[%emt 00:00:08]} hxg6
{[%clk 00:00:19]} {[%emt 00:00:04]} 45. fxg6 {[%clk 00:05:34]} {[%emt
00:00:03]} Nd6+ {[%clk 00:00:10]} {[%emt 00:00:13]} 46. Bxd6 {[%clk 00:05:34]}
{[%emt 00:00:06]} 1-0